Workbook

Sheet Introduction
B3: KSU-Feeder Cattle Risk Management Tool
B5: An Excel spreadsheet for evaluating feeder cattle risk management strategies
L8: Version- 12.14.2020
B28: INTRODUCTION
B29: This spreadsheet was developed as a decision-aid tool for producers interested in managing feeder cattle price risk. It can be used to compare the Expected Net Selling Price using alternative risk management tools available for pricing feeder cattle.
B31: INSTRUCTIONS FOR THE USER:
B32: Be sure to "Enable Content" and "Enable Macros" for the spreadsheet to function correctly.
B33: In the Comparison sheet all blue numbers are input by the user. All black numbers are calculated using data provided by the user. The spreadsheet automatically recalculates every time an additional input is entered. Thus, it is important to wait until all data have been entered and reviewed before interpreting any of the calculated results (i.e., black numbers). Most of the input cells (i.e., blue number) have a red diamond in the upper right hand corner of the cell. By moving your mouse cursor over this diamond, a brief description of the input will be displayed on the screen.
B40: FOR MORE INFORMATION:
B41: To learn more about managing price risk and using LRP insurance visit www.AgManager.info or click on the following links:
C42: LRP Insurance Information | I42: Price Risk Management Information
B43: Updated by:
B45: Glynn T. Tonsor, Ph.D.
B46: Agricultural Economist
B47: Department of Agricultural Economics
B48: Kansas State University
B49: gtonsor@k-state.edu
B50: 785-532-1518
B52: ACKNOWLEDGEMENTS:
B53: This spreadsheet was originally developed by Kevin Dhuyvetter, Ph.D., Agricultural Economist, Kanasas State University. The authors gratefully acknowledge funding provided by USDA's Risk Management Agency (RMA) for initial development of this feeder cattle risk management tool.
B55: Copyright 2020 AgManager.info, K-State Department of Agricultural Economics

Sheet Comparison
B2: Comparison of Alternative Risk Management Strategies for Pricing Feeder Cattle
B4: Current date | H4: 2020-12-14 | L4: Futures | M4: LRP | N4: Put | O4: Call | P4: Put | Q4: Call
B5: ="Number of head (number of head to match futures contract = "&FIXED(L117/H6,0)&")" -> Number of head (number of head to match futures contract = 83) | H5: 83 | J5: Number of contracts | L5: 1 | M5: 83 | N5: 1 | O5: 1 | P5: 1 | Q5: 1
B6: ="Expected weight at time of sale, lbs/head -- "&IF(H6<L115,"(use weight 1 for LRP)","(use weight 2 for LRP)") -> Expected weight at time of sale, lbs/head -- (use weight 2 for LRP) | H6: 600 | J6: Strike price(s), $/cwt | M6: 140.16 | N6: 152 | O6: 150 | P6: 146 | Q6: 146
B7: Pounds of cattle expected to sell in cash market, lbs | H7: =H5*H6 -> 49800 | J7: Premium, $/cwt | M7: =VLOOKUP(M6,B105:D117,3,1) -> 6.091 | N7: =VLOOKUP(N6,B22:D34,2,1) -> 11.75 | O7: =VLOOKUP(O6,B22:D34,3,1) -> 7.5 | P7: =VLOOKUP(P6,B22:D34,2,1) -> 8.725 | Q7: =IF(Q6=0,0,VLOOKUP(Q6,B22:D34,3,1)) -> 9.55
B8: Expected sale date | H8: 2021-10-13 | M8: =IF(M5>H5,"Cannot buy LRP for more cattle than owned!","") -> 
B9: Feeder cattle type | H9: Steers | K9: Expected Net Selling Prices
J10: Futures | O10: Hedge
B11: CME futures contract for hedging (Jan, Mar, Apr, May, Aug, Sep, Oct, Nov) | H11: Oct | J11: price | K11: Cash | L11: Hedge | M11: LRP | N11: Put | O11: &Call | P11: Put&Call
B12: Commission for roundtrip (sell and buy) futures trade, $/contract | H12: 60 | J12: 125 | K12: =J12+H$15 -> 138.09 | L12: =IF(L$5=0,"n/a",(K12/100*H$7+((H$14-J12)*L$117/100-H$12)*L$5)/H$7*100) -> 160.7857831 | M12: =IF(OR(M$5=0,M$5>H$5),"n/a",(K12/100*H$7-M$7*H$6/100*M$5+IF(M$6>J12*L$113,(M$6-J12*L$113)*H$6/100*M$5,0))/H$7*100) -> 147.159 | N12: =IF(N$5=0,"n/a",(K12/100*H$7-(N$7*L$117/100+H$13)*N$5+IF(N$6>J12,((N$6-J12)*L$117/100-H$13)*N$5))/H$7*100) -> 153.2807631 | O12: =IF(O$5=0,"n/a",(K12/100*H$7+((H$14-J12)*L$117/100-H$12)*L$5-(O$7*L$117/100+H$13)*O$5+IF(J12>O$6,((J12-O$6)*L$117/100-H$13)*O$5,0))/H$7*100) -> 153.1954217 | P12: =IF(SUM(P$5:Q$5)=0,"n/a",(K12/100*H$7-(P$7*L$117/100+H$13)*P$5+(Q$7*L$117/100-H$13)*Q$5+IF(P$6>J12,((P$6-J12)*L$117/100-H$13)*P$5)-IF(Q$6<J12,((J12-Q$6)*L$117/100+H$13)*Q$5))/H$7*100) -> 159.8219277 | Q12: =MAX(K12:P12) -> 160.7857831
B13: Commission to buy or sell options contract, $/contract | H13: 30 | J13: =+J12+J$21 -> 130 | K13: 143.09 | L13: =IF(L$5=0,"n/a",(K13/100*H$7+((H$14-J13)*L$117/100-H$12)*L$5)/H$7*100) -> 160.7657028 | M13: =IF(OR(M$5=0,M$5>H$5),"n/a",(K13/100*H$7-M$7*H$6/100*M$5+IF(M$6>J13*L$113,(M$6-J13*L$113)*H$6/100*M$5,0))/H$7*100) -> 147.159 | N13: =IF(N$5=0,"n/a",(K13/100*H$7-(N$7*L$117/100+H$13)*N$5+IF(N$6>J13,((N$6-J13)*L$117/100-H$13)*N$5))/H$7*100) -> 153.2606827 | O13: =IF(O$5=0,"n/a",(K13/100*H$7+((H$14-J13)*L$117/100-H$12)*L$5-(O$7*L$117/100+H$13)*O$5+IF(J13>O$6,((J13-O$6)*L$117/100-H$13)*O$5,0))/H$7*100) -> 153.1753414 | P13: =IF(SUM(P$5:Q$5)=0,"n/a",(K13/100*H$7-(P$7*L$117/100+H$13)*P$5+(Q$7*L$117/100-H$13)*Q$5+IF(P$6>J13,((P$6-J13)*L$117/100-H$13)*P$5)-IF(Q$6<J13,((J13-Q$6)*L$117/100+H$13)*Q$5))/H$7*100) -> 159.8018474 | Q13: =MAX(K13:P13) -> 160.7657028
B14: ="Futures price -- "&H11&" CME feeder cattle contract, $/cwt*" -> Futures price -- Oct CME feeder cattle contract, $/cwt* | H14: 147.725 | J14: 135 | K14: 148.09 | L14: =IF(L$5=0,"n/a",(K14/100*H$7+((H$14-J14)*L$117/100-H$12)*L$5)/H$7*100) -> 160.7456225 | M14: =IF(OR(M$5=0,M$5>H$5),"n/a",(K14/100*H$7-M$7*H$6/100*M$5+IF(M$6>J14*L$113,(M$6-J14*L$113)*H$6/100*M$5,0))/H$7*100) -> 147.159 | N14: 153.2406024 | O14: 153.155261 | P14: 159.7817671 | Q14: 160.7456225
B15: ="Expected basis (cash - "&H11&" CME futures), $/cwt#" -> Expected basis (cash - Oct CME futures), $/cwt# | H15: 13.09 | J15: 140 | K15: 153.09 | L15: 160.7255422 | M15: =IF(OR(M$5=0,M$5>H$5),"n/a",(K15/100*H$7-M$7*H$6/100*M$5+IF(M$6>J15*L$113,(M$6-J15*L$113)*H$6/100*M$5,0))/H$7*100) -> 147.159 | N15: 153.2205221 | O15: 153.1351807 | P15: 159.7616867 | Q15: 160.7255422
B16: LRP expected ending value for relevant time period^ | H16: 147.463 | J16: 145 | K16: 158.09 | L16: 160.7054618 | M16: 151.999 | N16: 153.2004418 | O16: 153.1151004 | P16: 159.7416064 | Q16: 160.7054618
B17: End date for LRP contract | H17: 2021-11-05 | J17: 150 | K17: 163.09 | L17: 160.6853815 | M17: 156.999 | N17: 153.1803614 | O17: 153.0950201 | P17: 159.7215261 | Q17: 163.09
J18: 155 | K18: 168.09 | L18: 160.6653012 | M18: 161.999 | N18: 156.2325703 | O18: 158.0347791 | P18: 159.7014458 | Q18: 168.09
B19: CME feeder cattle option premiums | F19: LRP coverage levels and premiums | J19: 160 | K19: 173.09 | L19: 160.6452209 | M19: 166.999 | N19: 161.2325703 | O19: 163.0347791 | P19: 159.6813655 | Q19: 173.09
B20: Strike price | C20: Put | D20: Call | F20: Coverage Level | H20: LRP cost | J20: 165 | K20: 178.09 | L20: 160.6251406 | M20: 171.999 | N20: 166.2325703 | O20: 168.0347791 | P20: 159.6612851 | Q20: 178.09
B21: $/cwt | C21: $/cwt | D21: $/cwt | F21: $/cwt | G21: -%- | H21: $/cwt | J21: 5 | K21: <= futures price increment | Q21: Signifies maximum price in row
B22: =B23-2 -> 136 | F22: 146.16 | G22: =F22/H$16 -> 0.9911638852 | H22: 9.39
B23: 138 | C23: 5.625 | D23: 14.45 | F23: =ROUND(F22-M$113,3) -> 144.16 | G23: =F23/H$16 -> 0.977601161 | H23: 8.237 | K23: Cash | L23: Futures Hedge | M23: ="LRP, ($"&FIXED(M6,0)&")" -> LRP, ($140) | N23: ="Put, ($"&FIXED(N6,0)&")" -> Put, ($152) | O23: ="Hedge & Call, ($"&FIXED(O6,0)&")" -> Hedge & Call, ($150) | P23: ="Put & Call, ($"&FIXED(P6,0)&"/$"&FIXED(Q6,0)&")" -> Put & Call, ($146/$146)
B24: 140 | C24: 6.3 | D24: 13.125 | F24: =ROUND(F23-M$113,3) -> 142.16 | G24: 0.9640384368 | H24: 7.116
B25: 142 | C25: 7.075 | D25: 11.9 | F25: 140.16 | G25: 0.9504757126 | H25: 6.091
B26: 144 | C26: 7.875 | D26: 10.7 | F26: 138.16 | G26: 0.9369129883 | H26: 5.175
B27: 146 | C27: 8.725 | D27: 9.55 | F27: 136.16 | G27: 0.9233502641 | H27: 4.411
B28: =EVEN(ROUND(H14,0)) -> 148 | C28: 9.675 | D28: 8.5 | F28: 134.16 | G28: 0.9097875399 | H28: 3.702
B29: =B28+2 -> 150 | C29: 10.675 | D29: 7.5 | F29: 132.16 | G29: 0.8962248157 | H29: 3.139
B30: 152 | C30: 11.75 | D30: 6.575 | F30: 130.16 | G30: 0.8826620915 | H30: 2.64
B31: 154 | C31: 12.925 | D31: 5.75 | F31: 128.16 | G31: 0.8690993673 | H31: 2.225
B32: 156 | C32: 14.15 | D32: 4.975 | F32: 126.16 | G32: 0.8555366431
B33: 158 | F33: 124.16 | G33: 0.8419739189
B34: 160 | F34: =ROUND(F33-M$113,3) -> 122.16 | G34: 0.8284111947
B36: # Websites with information on feeder cattle basis
B37: http://www.agmanager.info/livestock/marketing/graphs/
B38: http://www.beefbasis.com/
B39: * Website with futures prices and option premium quotes
B40: http://www.cmegroup.com/trading/agricultural/livestock/feeder-cattle_quotes_globex_options.html
B41: ^ Website with LRP coverage levels and premiums
B42: https://public.rma.usda.gov/livestockreports/main.aspx
B44: FeederCattleRiskMgmtTool.xls
F45: Updated by: | G45: Glynn T. Tonsor, PhD
F46: Developed by: | G46: Kevin C. Dhuyvetter, PhD
B101: Data/information used in formulas above -- do not delete!
B103: LRP coverage level | D103: LRP cost | L103: Price | M103: Price
B104: $/cwt | C104: -%- | D104: $/cwt | F104: Feeder cattle type | H104: Type | J104: Weight | K104: Factor | L104: Adj. | M104: Inc.
B105: =F34 -> 122.16 | C105: =B105/H$16 -> 0.8284111947 | D105: =IF(H34=0,"n/a",H34) -> n/a | F105: Steers | G105: Weight 1 | H105: =IF(H$9=F105,1,0) -> 1 | J105: =IF(H$6<L$115,1,0) -> 0 | K105: =H105*J105 -> 0 | L105: 1.1 | M105: 2.2
B106: =F33 -> 124.16 | C106: 0.8419739189 | D106: =IF(H33=0,"n/a",H33) -> n/a | F106: Steers | G106: Weight 2 | H106: 1 | J106: =IF(H$6>=L$115,1,0) -> 1 | K106: =H106*J106 -> 1 | L106: 1 | M106: 2
B107: =F32 -> 126.16 | C107: 0.8555366431 | D107: =IF(H32=0,"n/a",H32) -> n/a | F107: Heifers | G107: Weight 1 | H107: 0 | J107: =IF(H$6<L$115,1,0) -> 0 | K107: 0 | L107: 1 | M107: 2
B108: =F31 -> 128.16 | C108: 0.8690993673 | D108: =IF(H31=0,"n/a",H31) -> 2.225 | F108: Heifers | G108: Weight 2 | H108: 0 | J108: =IF(H$6>=L$115,1,0) -> 1 | K108: 0 | L108: 0.9 | M108: 1.8
B109: =F30 -> 130.16 | C109: 0.8826620915 | D109: =IF(H30=0,"n/a",H30) -> 2.64 | F109: Braham | G109: Weight 1 | H109: 0 | J109: =IF(H$6<L$115,1,0) -> 0 | K109: 0 | L109: 1 | M109: 2
B110: =F29 -> 132.16 | C110: 0.8962248157 | D110: =IF(H29=0,"n/a",H29) -> 3.139 | F110: Braham | G110: Weigh 2 | H110: 0 | J110: =IF(H$6>=L$115,1,0) -> 1 | K110: 0 | L110: 0.9 | M110: 1.8
B111: =F28 -> 134.16 | C111: 0.9097875399 | D111: =IF(H28=0,"n/a",H28) -> 3.702 | F111: Dairy | G111: Weight 1 | H111: 0 | J111: =IF(H$6<L$115,1,0) -> 0 | K111: 0 | L111: 1 | M111: 1.7
B112: =F27 -> 136.16 | C112: 0.9233502641 | D112: =IF(H27=0,"n/a",H27) -> 4.411 | F112: Dairy | G112: Weight 2 | H112: 0 | J112: =IF(H$6>=L$115,1,0) -> 1 | K112: 0 | L112: 0.8 | M112: 1.6
B113: =F26 -> 138.16 | C113: 0.9369129883 | D113: =IF(H26=0,"n/a",H26) -> 5.175 | F113: LRP adjustment factor used in formulas | L113: =SUMPRODUCT(K105:K112,L105:L112) -> 1 | M113: =SUMPRODUCT(K105:K112,M105:M112) -> 2
B114: =F25 -> 140.16 | C114: 0.9504757126 | D114: =IF(H25=0,"n/a",H25) -> 6.091
B115: =F24 -> 142.16 | C115: 0.9640384368 | D115: =IF(H24=0,"n/a",H24) -> 7.116 | F115: Minimum weight for Wt2 | L115: 600
B116: =F23 -> 144.16 | C116: 0.977601161 | D116: =IF(H23=0,"n/a",H23) -> 8.237 | F116: Maximum weight for Wt2 | L116: 900
B117: =F22 -> 146.16 | C117: 0.9911638852 | D117: =IF(H22=0,"n/a",H22) -> 9.39 | F117: Pounds per feeder cattle futures contract | L117: 50000

Sheet Futures-options
B2: Example screen from CME website showing prices for 7/3/2019 for feeder cattle futures contracts
B3: http://www.cmegroup.com/trading/agricultural/livestock/feeder-cattle.html
B48: Example screen from CME website showing option premiums for 7/3/2019 for OCT 2019 feeder cattle contract
B49: http://www.cmegroup.com/trading/agricultural/livestock/feeder-cattle_quotes_globex_options.html

Sheet LRP
B2: Example INPUT screen for LRP premiums | H2: https://public.rma.usda.gov/livestockreports/main.aspx
B41: Example OUTPUT screen for LRP premiums | I41: https://public.rma.usda.gov/livestockreports/main.aspx
